bitfinex/quotes_ETHUSD_20220220
["timestamp","ask_amount","ask_price","bid_price","bid_amount"]
[1645379796758,0.00374223,2653.1,2652.6,0.94272]
[1645379796961,0.00610358,2653.1,2652.6,0.94272]
[1645379797911,0.00374223,2653.1,2652.6,0.94272]
[1645379798110,0.00610358,2653.1,2652.6,0.94272]
[1645379799112,0.00374223,2653.1,2652.6,0.94272]
[1645379799314,0.00610358,2653.1,2652.7,0.71947368]
[1645379800311,0.00374223,2653.1,2652.7,0.71947368]
[1645379800513,0.00610361,2653.1,2652.7,0.71947368]
[1645379801414,0.00374223,2653.1,2652.7,0.71947368]
[1645379801657,0.00610361,2653.1,2652.7,0.71947368]
[1645379801956,0.00610361,2653.1,2652.5,1.66209918]
[1645379802357,0.01012105,2653.1,2652.5,1.66209918]
[1645379802555,0.00775967,2653.1,2652.5,1.66209918]
[1645379803058,0.010121,2653.1,2652.5,1.66209918]
[1645379803259,0.010121,2653.1,2652.5,0.71947368]
[1645379803858,0.00775967,2653.1,2652.5,0.71947368]
[1645379804061,0.010121,2653.1,2652.5,0.71947368]
[1645379804261,1.0717027,2653.0,2652.5,1.24487217]
[1645379804463,1.0717027,2653.0,2652.6,0.52539849]
[1645379804662,0.00401744,2652.9,2652.7,0.52539849]
[1645379804858,1.0717027,2653.0,2652.5,1.24487217]
[1645379805160,0.00401744,2652.9,2652.6,0.52539849]
[1645379805415,1.07545173,2653.0,2652.6,0.52539849]
[1645379805608,1.07545173,2653.0,2652.5,0.52539849]
[1645379805810,0.00401744,2652.9,2652.6,0.52539849]
[1645379806011,1.0717027,2652.9,2652.7,0.52539849]
[1645379806209,0.00401744,2652.9,2652.8,0.52539849]
[1645379806410,0.00374903,2653.0,2652.8,0.52539849]
[1645379806610,0.00374903,2653.0,2652.9,0.52539849]
[1645379806810,0.00374903,2653.0,2652.4,5.07102883]
[1645379806811,1.07521586,2653.0,2652.5,0.52532967]
[1645379807011,1.07146683,2652.9,2652.6,0.52533041]
[1645379807214,1.07146683,2652.8,2652.7,0.52533041]
[1645379807610,1.07521586,2653.0,2652.5,0.52533041]
[1645379807811,1.07146683,2652.9,2652.6,0.52533041]
[1645379808012,0.00401744,2652.9,2652.7,0.52533041]
[1645379808210,1.07118692,2652.9,2652.8,0.52533041]
[1645379808415,0.00401744,2652.9,2652.5,1.24480409]
[1645379808712,1.07118692,2652.9,2652.5,1.24480409]
[1645379808914,1.07118692,2652.9,2652.6,0.52533041]
[1645379808915,0.00401744,2652.9,2652.6,0.52533041]
[1645379809159,0.00374903,2653.0,2652.7,0.52533041]
[1645379809359,0.00279314,2653.0,2652.8,0.52533041]
[1645379809766,0.00279314,2653.0,2652.9,0.52533041]
[1645379809962,1.07404454,2653.0,2652.9,0.52533041]
[1645379810160,1.07404454,2653.0,2652.5,1.24480409]
[1645379810368,0.00279314,2653.0,2652.6,0.52533041]
[1645379810663,0.00374449,2652.8,2652.7,0.52533041]
[1645379810862,0.0012849,2652.8,2652.5,1.24480409]
[1645379811162,0.0012849,2652.8,2652.5,1.23838709]
[1645379811361,1.07257972,2652.8,2652.5,1.23838709]
[1645379811561,1.07129482,2652.7,2652.5,1.23838709]
[1645379811763,0.0012849,2652.8,2652.5,1.23838709]
[1645379813124,0.0012849,2652.8,2652.5,0.52533041]
[1645379813325,1.07265113,2652.8,2652.5,0.52533041]
[1645379813527,1.06827065,2652.7,2652.5,0.52533041]
[1645379813727,0.00236126,2653.1,2652.5,0.52533041]
[1645379814829,0.00236133,2653.1,2652.5,0.52533041]
[1645379815625,0.00362024,2652.7,2652.5,0.52533041]
[1645379820423,0.00593332,2653.1,2652.5,0.52533041]
[1645379820618,0.00357209,2653.1,2652.5,0.52533041]
[1645379821017,0.00593332,2653.1,2652.5,0.52533041]
[1645379821418,0.72766868,2653.1,2652.5,0.52533041]
[1645379821617,0.72365124,2653.1,2652.5,0.52533041]
[1645379821817,0.00401744,2653.0,2652.5,0.52533041]
[1645379823020,0.72173536,2653.0,2652.5,0.52533041]
[1645379823218,0.71771792,2653.0,2652.5,0.52533041]
[1645379823618,0.72365132,2653.1,2652.5,0.52533041]
[1645379823820,0.00401744,2653.0,2652.5,0.52533041]
[1645379825564,0.00357889,2652.9,2652.5,0.52533041]
[1645379828010,0.00758608,2652.9,2652.5,0.52533041]
[1645379828308,0.00357889,2652.9,2652.5,0.52533041]
[1645379828509,0.00758608,2652.9,2652.5,0.52533041]
[1645379828709,0.00357889,2652.9,2652.5,0.52533041]
[1645379828913,0.00758608,2652.9,2652.5,0.52533041]
[1645379829111,0.00357889,2652.9,2652.5,0.52533041]
[1645379829313,0.00758608,2652.9,2652.5,0.52533041]
[1645379829513,0.00357889,2652.9,2652.5,0.52533041]
[1645379829712,0.00758608,2652.9,2652.5,0.52533041]
[1645379829912,0.00357889,2652.9,2652.5,0.52533041]
[1645379830113,1.12062123,2652.9,2652.5,0.52533041]
[1645379830325,0.71771792,2652.8,2652.5,0.52533041]
[1645379830716,0.71771792,2652.8,2652.4,0.00236182]
[1645379831559,0.71771792,2652.8,2652.1,0.9429562]
[1645379831765,0.71771792,2652.7,2652.4,0.00236178]
[1645379831959,0.00081016,2652.2,2652.0,2.5629573]
[1645379832561,0.85418837,2652.1,2651.7,2.5629573]
[1645379832764,13.08190629,2652.1,2651.7,2.5629573]
[1645379832967,0.71771792,2652.0,2651.7,2.5629573]
[1645379833161,12.22771792,2652.0,2651.7,2.5629573]
[1645379833360,0.90621792,2652.0,2651.7,2.5629573]
[1645379833562,13.45150997,2652.1,2651.7,2.5629573]
[1645379833760,13.45150997,2652.1,2651.8,0.52916441]
[1645379833761,1.0646573,2651.9,2651.8,0.52916441]
[1645379833964,1.0646573,2652.0,2651.8,0.52916441]
[1645379834263,1.0646573,2651.9,2651.7,0.00110358]
[1645379834462,1.57190629,2652.1,2651.7,0.00110358]
[1645379834463,1.0646573,2651.8,2651.7,0.00110358]
[1645379834965,1.0646573,2652.0,2651.7,0.00110358]
[1645379835163,1.0646573,2652.0,2651.3,0.52802858]
[1645379835421,1.0646573,2652.0,2651.6,0.00236211]
[1645379835810,1.0646573,2652.0,2651.6,0.53039069]
[1645379836012,1.0646573,2652.0,2651.7,0.52802858]
[1645379836210,1.0646573,2652.0,2651.8,0.52802858]
[1645379836512,1.0646573,2652.0,2651.7,0.00236209]
[1645379837710,1.0646573,2652.0,2651.2,0.52744252]
[1645379838915,1.0646573,2652.0,2651.5,0.00227969]
[1645379839763,12.5746573,2652.0,2651.2,0.52744252]
[1645379839965,1.0646573,2651.9,2651.2,0.52744252]
[1645379840165,1.0646573,2651.8,2651.6,0.00227963]
[1645379840364,1.0646573,2651.7,2651.6,0.00227963]
[1645379840965,0.0035562,2651.9,2651.2,0.52744252]
[1645379841367,0.0035562,2651.9,2651.5,0.00227967]
[1645379842363,0.0035562,2651.9,2651.2,0.52744252]
[1645379842565,0.0035562,2651.9,2651.6,0.00235938]
[1645379843414,0.0035562,2651.9,2651.2,0.52744252]
[1645379843812,0.0035562,2651.9,2651.6,0.00235935]
[1645379844712,0.0035562,2651.9,2651.2,0.52744252]
[1645379844911,1.06233951,2651.9,2651.2,0.52744252]
[1645379845112,1.05878331,2651.8,2651.2,0.52744252]
[1645379845713,1.06233724,2651.8,2651.2,0.52744252]
[1645379845917,0.00355393,2651.8,2651.2,0.52744252]
[1645379846213,0.00355393,2651.8,2651.4,0.00235671]
[1645379846412,1.04812791,2651.8,2651.4,0.00235671]
[1645379846664,11.51,2652.1,2651.4,0.00235671]
[1645379847065,11.51,2652.1,2651.2,0.52744252]
[1645379847266,11.51,2652.1,2651.6,0.00235661]
[1645379848266,11.51,2652.1,2651.2,0.52744252]
[1645379848471,11.51,2652.1,2651.7,0.00235657]
[1645379849567,11.51,2652.1,2651.2,0.52744252]
[1645379849769,11.51,2652.1,2651.8,0.00235654]
[1645379850422,16.51,2652.0,2651.8,0.00235654]
[1645379850617,11.51343155,2652.0,2651.2,0.52744252]
[1645379851020,11.51343155,2652.0,2651.8,0.00235652]
[1645379851418,0.00343155,2652.0,2651.8,0.00235652]
[1645379851817,0.00343155,2652.0,2651.2,0.52744252]
[1645379852222,0.00343155,2652.0,2651.8,0.00235654]
[1645379852420,0.00079645,2651.5,2651.2,0.52744252]
[1645379853019,0.00079645,2651.5,2651.1,2.44182632]
[1645379854468,0.00079645,2651.5,2651.2,0.00235679]
[1645379855473,0.00079645,2651.5,2651.1,2.44182632]
[1645379855670,0.00079645,2651.5,2651.2,0.00235677]
[1645379856670,0.00079645,2651.5,2651.1,2.44182632]
[1645379856871,0.00079645,2651.5,2651.2,0.00235677]
[1645379857914,0.00079645,2651.5,2651.1,2.44182632]
[1645379858113,0.00079645,2651.5,2651.2,0.00235677]
[1645379859114,0.00079645,2651.5,2651.1,0.55523502]
[1645379859315,0.00079645,2651.5,2651.2,0.00235677]
[1645379859316,0.97101624,2651.3,2651.2,0.00235677]
[1645379860217,0.97101624,2651.3,2651.0,0.5718909]
[1645379860616,0.97101624,2651.3,2651.1,0.00235681]
[1645379861422,0.97101624,2651.3,2651.0,0.5718909]
[1645379861663,0.00341792,2651.4,2651.1,0.00235683]
[1645379862667,0.00341792,2651.4,2651.0,0.5718909]
[1645379862867,0.00341792,2651.4,2651.1,0.00235681]
[1645379863866,0.00341792,2651.4,2651.0,0.5718909]
[1645379864072,0.00341792,2651.4,2651.1,0.00235681]
[1645379865069,0.00341792,2651.4,2651.0,0.5718909]
[1645379865318,0.00341792,2651.4,2651.1,0.00235681]
[1645379865517,0.83980913,2651.7,2651.1,0.00235681]
[1645379866117,12.34980913,2651.7,2651.1,0.00235681]
[1645379866323,12.34980913,2651.7,2651.0,0.00272542]
[1645379866623,0.83980913,2651.7,2651.3,0.00235675]
[1645379867518,0.83980913,2651.7,2651.0,0.00272542]
[1645379867717,0.83980913,2651.7,2651.4,0.00235671]
[1645379868718,0.83980913,2651.7,2651.0,0.00272542]
[1645379868920,0.83980913,2651.7,2651.4,0.00235669]
[1645379869863,0.83980913,2651.7,2651.0,0.00272542]
[1645379870068,0.83980913,2651.7,2651.4,0.00235669]
[1645379870668,0.0033004,2651.6,2651.4,0.00235669]
[1645379871072,0.0033004,2651.6,2651.0,0.00272542]
[1645379871269,0.0033004,2651.6,2651.4,0.00235671]
[1645379872370,0.0033004,2651.6,2651.0,0.00272542]
[1645379872575,0.00315584,2651.2,2651.0,0.00272542]
[1645379873024,0.00315584,2651.2,2651.0,0.52979565]
[1645379873423,0.00315584,2651.2,2651.0,0.47979565]
[1645379873923,0.00315584,2651.2,2651.0,0.48215253]
[1645379874725,0.00315584,2651.2,2651.0,0.47979565]
[1645379874927,0.00315584,2651.2,2651.0,0.48215253]
[1645379876026,0.00315584,2651.2,2651.0,0.47979565]
[1645379876228,0.00315584,2651.2,2651.0,0.48215253]
[1645379876429,0.00315584,2651.2,2651.0,0.00235688]
[1645379876676,3.50315584,2651.2,2651.0,0.00235688]
[1645379877075,3.50315584,2651.2,2650.5,0.57270566]
[1645379877276,3.50315584,2651.2,2650.4,1.8869317]
[1645379877277,1.04288513,2650.8,2650.4,1.8869317]
[1645379877473,0.00315584,2651.2,2650.6,0.00942892]
[1645379878272,0.00315584,2651.2,2650.4,1.8869317]
[1645379878471,0.00315584,2651.2,2650.8,0.00235696]
[1645379878672,0.87385179,2651.1,2650.8,0.00235696]
[1645379879578,0.87385179,2651.1,2650.4,1.8869317]
[1645379879773,0.87385179,2651.1,2650.8,0.00235694]
[1645379880621,0.87385179,2651.1,2650.4,1.89636086]
[1645379880622,0.87714083,2651.1,2650.4,1.8869317]
[1645379880821,0.87714083,2651.1,2650.8,0.00235694]
[1645379881822,0.87714083,2651.1,2650.4,1.8869317]
[1645379883429,3.5,2651.0,2650.4,1.8869317]
[1645379884265,0.87714083,2651.1,2650.4,1.8869317]
[1645379884471,0.87714083,2651.1,2650.6,0.0023543]
[1645379885469,0.87714083,2651.1,2650.4,1.8869317]
[1645379885668,0.87714083,2651.1,2650.7,0.00235424]
[1645379886666,0.87714083,2651.1,2650.4,1.8869317]
[1645379886870,0.87714083,2651.1,2650.8,0.00235422]
[1645379887919,0.87714083,2651.1,2650.4,1.8869317]
[1645379888118,0.87714083,2651.1,2650.8,0.0023542]
[1645379889020,0.87714083,2651.1,2650.5,0.00268389]
[1645379889420,0.87714083,2651.1,2650.8,0.0023542]
[1645379890320,0.87714083,2651.1,2650.5,0.00268389]
[1645379890520,0.87714083,2651.1,2650.8,0.0023542]
[1645379891125,13.10485875,2651.1,2650.8,0.0023542]
[1645379891325,15.01,2651.0,2650.8,0.0023542]
[1645379891569,15.01,2650.9,2650.3,0.00268389]
[1645379891770,15.01,2650.9,2650.4,0.00941821]
[1645379891771,12.22320132,2650.7,2650.4,0.00941821]
[1645379891972,15.01,2650.6,2650.4,0.00941821]
[1645379892173,4.54161302,2650.5,2650.4,0.00941821]
[1645379892572,0.00318097,2650.0,2649.9,0.00268389]
[1645379892775,0.00318097,2650.0,2649.8,1.2211]
[1645379892969,0.00318097,2650.0,2649.9,0.00941904]
[1645379893471,0.00318097,2650.0,2649.9,1.904e-05]
[1645379893677,23.19155811,2650.0,2649.9,1.904e-05]
[1645379893872,23.81321499,2650.0,2649.3,0.00268389]
[1645379894072,1.19364687,2649.4,2649.3,0.00268389]
[1645379894374,1.19364687,2649.4,2649.2,2.56561318]
[1645379894375,2.25217534,2649.4,2649.2,2.56561318]
[1645379894572,1.05852847,2649.3,2649.2,2.56561318]
[1645379894773,1.05852847,2649.3,2648.7,0.00268389]
[1645379895927,3.5,2649.2,2648.7,0.00268389]
[1645379896127,1.05852847,2649.1,2648.5,0.00268389]
[1645379896329,3.5,2649.0,2648.1,0.52945082]
[1645379896525,3.5,2649.0,2648.8,0.00235806]
[1645379896726,11.51,2649.2,2648.8,0.00235806]
[1645379896929,12.50528178,2649.0,2648.8,0.00235806]
[1645379897128,15.01,2648.9,2648.8,0.00235806]
[1645379897528,15.01,2648.9,2648.2,0.00268389]
[1645379897933,15.01,2648.9,2648.7,0.0023581]
[1645379898129,15.01,2648.8,2648.7,0.0023581]
[1645379898727,15.01,2648.8,2648.2,0.00268389]
[1645379898929,15.01,2648.8,2648.6,0.00235814]
[1645379899173,3.5,2648.7,2648.6,0.00235814]
[1645379899977,3.5,2648.7,2648.2,0.00268389]
[1645379900170,3.5,2648.7,2648.5,0.00108205]
[1645379900371,11.51,2648.9,2648.5,0.00108205]
[1645379900972,11.51312581,2648.9,2648.5,0.00108205]
[1645379901175,0.9356003,2648.6,2648.2,0.00268389]
[1645379901475,0.9356003,2648.6,2648.2,0.00701264]
[1645379901672,12.4456003,2648.6,2648.2,0.00701264]
[1645379901881,13.3359003,2648.6,2648.2,0.00701264]
[1645379902277,13.3359003,2648.6,2648.2,0.00268389]
[1645379902477,0.1887,2648.5,2648.2,0.00268389]
[1645379903129,0.1887,2648.5,2647.6,0.00268389]
[1645379903926,11.51,2648.4,2647.4,0.00268389]
[1645379904729,0.98943126,2648.1,2647.2,0.00268389]
[1645379904932,0.98943126,2648.1,2647.8,0.00236089]
[1645379905127,12.49943126,2648.1,2647.8,0.00236089]
[1645379905830,12.68813126,2648.1,2647.8,6.089e-05]
[1645379906032,14.91913126,2648.1,2646.7,0.00268389]
[1645379906227,1.02174938,2647.4,2646.7,0.00268389]
[1645379906428,0.25,2647.9,2646.7,0.00268389]
[1645379906683,0.1887,2647.8,2646.7,0.00268389]
[1645379907477,1.11052499,2647.6,2646.7,0.00268389]
[1645379907677,11.51,2647.5,2646.7,0.00268389]
[1645379908477,1.27863812,2647.6,2646.7,0.00268389]
[1645379908679,0.1887,2647.8,2646.7,0.00268389]
[1645379908880,0.1887,2647.8,2646.8,0.9448457]
[1645379909080,0.25,2647.9,2646.9,0.00268389]
[1645379909881,11.51,2647.6,2647.3,0.00218191]
[1645379910084,11.64596181,2647.6,2647.3,0.00218191]
[1645379910723,11.64596181,2647.6,2646.6,0.00268389]
[1645379910927,0.90305041,2647.3,2646.9,0.00872889]
[1645379911122,11.64596181,2647.6,2646.9,0.00872889]
[1645379911924,0.32466181,2647.6,2646.6,0.00268389]
[1645379912123,0.32466181,2647.6,2647.1,0.00218198]
[1645379912525,0.00074636,2646.8,2646.7,0.00872921]
[1645379913128,0.00074636,2646.8,2646.3,0.00268389]
[1645379914373,0.94758931,2647.2,2646.3,0.00268389]
[1645379914576,0.94758931,2647.2,2646.4,0.0021652]
[1645379915169,12.45758931,2647.2,2646.4,0.0021652]
[1645379915569,12.45758931,2647.2,2646.3,0.00268389]
[1645379915769,0.94758931,2647.2,2646.3,0.00268389]
[1645379918019,12.45758931,2647.2,2646.3,0.00268389]
[1645379918824,0.94758931,2647.2,2646.3,0.00268389]
[1645379919423,0.94758931,2647.2,2646.6,0.00107607]
[1645379920422,0.94758931,2647.2,2646.3,0.00268389]
[1645379920624,0.00295963,2647.1,2646.8,0.00107601]
[1645379921428,0.00295963,2647.1,2646.3,0.00268389]
[1645379921669,0.00295963,2647.1,2646.8,0.00236159]
[1645379922671,0.00295963,2647.1,2646.3,0.00268389]
[1645379922871,0.00295963,2647.1,2646.2,0.09088386]
[1645379923074,0.00295963,2647.1,2646.8,0.00236159]
[1645379923872,0.00295963,2647.1,2646.2,0.09088386]
[1645379924272,0.00295963,2647.1,2646.8,0.00236159]
[1645379925072,0.00295963,2647.1,2646.2,0.09088386]
[1645379925320,0.00295963,2647.1,2646.8,0.00236159]
[1645379926423,0.00295963,2647.1,2646.2,0.09088386]
[1645379926629,0.00295963,2647.1,2646.8,0.00236159]
[1645379927525,0.00295963,2647.1,2646.2,0.09088386]
[1645379927933,0.00295963,2647.1,2646.8,0.00236159]
[1645379928829,0.00295963,2647.1,2646.2,0.09088386]
[1645379929068,0.00295963,2647.1,2646.8,0.00236159]
[1645379929871,0.00295963,2647.1,2646.2,0.09088386]
[1645379930271,0.00295963,2647.1,2646.8,0.00236159]
[1645379931071,0.00295963,2647.1,2646.2,0.09088386]
[1645379931569,0.00295963,2647.1,2646.8,0.00236159]
[1645379932373,0.00295963,2647.1,2646.2,3.59088386]
[1645379932573,0.00295963,2647.1,2646.8,0.00236159]
[1645379932825,0.00076628,2646.5,2646.4,0.00944777]
[1645379933524,0.00076628,2646.5,2646.2,0.09088386]
[1645379934126,0.00076628,2646.5,2646.1,1.49628722]
[1645379935126,0.00076628,2646.5,2646.2,0.00107326]
[1645379936026,0.00076628,2646.5,2646.1,1.49628722]
[1645379936227,0.00076628,2646.5,2646.2,0.00107323]
[1645379937074,0.00076628,2646.5,2646.1,1.49628722]
[1645379937472,0.00076628,2646.5,2646.2,0.00236183]
[1645379938272,0.00076628,2646.5,2646.1,1.49628722]
[1645379938774,0.00076628,2646.5,2646.2,0.00502796]
[1645379939578,0.00076628,2646.5,2646.2,0.00266613]
[1645379939774,0.00076628,2646.5,2646.2,0.00502796]
[1645379940427,0.00294368,2646.4,2646.2,0.00502796]
[1645379940629,0.00294368,2646.4,2646.2,0.00236183]
[1645379940825,0.00294368,2646.4,2646.1,0.56031436]
[1645379941027,0.00294368,2646.4,2646.2,0.00236183]
[1645379941929,0.00294368,2646.4,2646.1,1.50540886]
[1645379942328,0.00294368,2646.4,2646.2,0.00236185]
[1645379942930,0.00294368,2646.4,2646.2,0.49347663]
[1645379943129,0.00294368,2646.4,2646.2,0.49111478]
[1645379943329,0.00294368,2646.4,2646.2,0.49347663]
[1645379944475,0.00294368,2646.4,2646.2,0.49218932]
[1645379945475,0.00294368,2646.4,2646.2,0.49111478]
[1645379945873,0.00294368,2646.4,2646.2,0.49347969]
[1645379946074,0.00294368,2646.4,2646.3,0.49311881]
[1645379949734,0.00294368,2646.4,2646.3,4.29311881]
[1645379949935,1.12542718,2647.1,2646.4,17.0]
[1645379950129,0.94961492,2647.9,2646.7,5.0]
[1645379950130,0.71221119,2647.9,2646.7,5.0]
[1645379950329,1.12567192,2647.8,2646.8,3.99578494]
[1645379950529,1.12567192,2647.7,2646.9,2.38217881]
[1645379950729,1.12567192,2647.7,2647.0,3.99578494]
[1645379950933,1.12567192,2647.7,2647.1,1.44044434]
[1645379951130,1.12567192,2647.7,2647.2,0.49578494]
[1645379951330,1.12567192,2647.7,2647.3,0.49311881]
[1645379951580,1.12567192,2647.7,2647.4,0.49311881]
[1645379951782,1.12567192,2647.7,2647.3,0.00266613]
[1645379951981,1.12567192,2647.7,2647.3,0.94732613]
[1645379952184,0.94961492,2648.3,2647.4,1.39819009]
[1645379952185,0.71221119,2648.3,2647.4,1.39819009]
[1645379952385,0.71221119,2648.3,2647.5,0.45624622]
[1645379952386,1.8458362,2648.3,2647.5,0.45624622]
[1645379952684,1.8458362,2648.2,2647.5,0.45624622]
[1645379952881,1.13362501,2648.1,2647.5,0.00266613]
[1645379953082,2.15611313,2648.0,2647.5,0.00266613]
[1645379953281,1.13362501,2647.9,2647.5,0.00266613]
[1645379953880,1.13362501,2647.8,2647.5,0.00266613]
[1645379954084,1.13362501,2647.7,2647.5,0.00266613]
[1645379954282,0.71221119,2648.2,2647.5,0.00266613]
[1645379954480,1.8458362,2648.3,2647.5,0.00266613]
[1645379954682,1.13362501,2648.2,2647.5,0.00266613]
[1645379954883,2.32463322,2648.1,2647.5,0.00266613]
[1645379955084,1.13362501,2648.0,2647.6,0.9445886]
[1645379955530,1.8458362,2648.3,2647.7,0.45393907]
[1645379955730,1.13362501,2648.2,2647.6,0.28765418]
[1645379955931,1.13362501,2648.1,2647.7,0.45378116]
[1645379956132,1.13362501,2648.0,2647.7,0.45378116]
[1645379956334,1.91701119,2648.4,2647.7,0.45378116]
[1645379956335,1.13362501,2647.9,2647.7,0.45378116]
[1645379956538,1.13362501,2647.8,2647.7,1.39832116]
[1645379956733,1.13362501,2648.1,2647.7,1.39832116]
[1645379956934,1.13362501,2648.0,2647.7,0.94454]
[1645379957135,1.13362501,2647.9,2647.7,0.94454]
[1645379957336,1.13362501,2647.8,2647.7,0.94454]
[1645379957535,1.13362501,2648.1,2647.5,0.00266613]
[1645379958638,1.13362501,2648.1,2647.5,0.45341287]
[1645379958942,0.25,2648.5,2647.7,0.94454]
[1645379959198,0.301,2648.6,2647.8,5.84224807]
[1645379959395,1.13145089,2648.5,2647.9,0.45341287]
[1645379959591,1.13145089,2648.5,2648.0,3.5]
[1645379959789,1.13145089,2648.5,2648.2,0.9442863]
[1645379959790,0.55143827,2648.5,2648.2,0.9442863]
[1645379959988,0.99126842,2648.6,2648.2,0.9442863]
[1645379960390,0.99126842,2648.6,2648.2,1.8885663]
[1645379960790,0.0023636,2648.7,2648.2,1.8885663]
[1645379961192,0.96221119,2649.1,2648.2,1.8885663]
[1645379961193,0.25,2649.1,2648.2,1.8885663]
[1645379961392,0.00222262,2648.7,2648.2,1.8885663]
[1645379962391,1.17245595,2649.0,2648.2,1.8885663]
[1645379962594,0.00222262,2648.7,2648.2,1.8885663]
[1645379962833,0.00222262,2648.7,2648.4,0.94425]
[1645379963637,1.17245595,2649.0,2648.4,0.94425]
[1645379963838,0.00222267,2648.7,2648.4,0.94425]
[1645379964842,0.25,2649.1,2648.4,0.94425]
[1645379965040,0.00236374,2648.7,2648.4,0.94425]
[1645379965241,0.00236374,2648.7,2648.4,1.8884791]
[1645379965441,0.00258752,2648.6,2648.4,1.8884791]
[1645379968189,8.752e-05,2648.6,2648.4,1.8884791]
[1645379968498,0.25,2649.6,2648.4,1.8884791]
[1645379968499,0.25,2649.6,2648.6,0.94396]
[1645379968693,0.25,2649.6,2648.7,3.5]
[1645379968890,0.00318097,2650.0,2649.3,0.94372]
[1645379969693,0.23009324,2650.2,2649.3,0.94372]
[1645379969895,0.00236332,2649.8,2649.3,0.94372]
[1645379970093,0.00236332,2649.8,2649.2,2.8311464]
[1645379970633,0.00236332,2649.8,2649.5,0.94373]
[1645379970831,0.23009324,2650.2,2649.6,0.943795]
[1645379971035,0.99432634,2650.4,2649.6,0.943795]
[1645379972234,0.00236318,2650.1,2649.6,0.943795]
[1645379973233,0.99432634,2650.4,2649.6,0.943795]
[1645379973434,0.00236324,2650.0,2649.7,3.5]
[1645379973640,0.00236324,2650.0,2649.7,4.44372]
[1645379974283,12.3378,2650.8,2649.7,4.44372]
[1645379974484,12.3378,2650.8,2650.0,0.94362]
[1645379974685,3.538,2650.8,2650.2,0.9436136]
[1645379974884,2.3298,2650.8,2650.2,0.9436136]
[1645379975686,0.00253377,2650.3,2650.2,0.9436136]
[1645379975888,0.00253377,2650.3,2650.1,1.12004864]
[1645379976687,0.00253377,2650.3,2650.1,2.06365864]
[1645379976887,0.00253377,2650.3,2650.2,0.9436136]
[1645379977090,0.00489687,2650.3,2650.2,0.9436136]
[1645379977936,0.00253377,2650.3,2650.2,0.9436136]
[1645379978136,0.00253377,2650.3,2650.1,1.12004864]
[1645379978336,2.32956804,2650.8,2650.1,1.12004864]
[1645379980148,0.89067079,2650.5,2649.9,3.77446]
[1645379980346,0.89067079,2650.5,2649.4,3.5]
[1645379980347,1.02760945,2649.8,2649.4,0.9439188]
[1645379980541,1.02760945,2649.8,2649.3,1.2251]
[1645379980739,1.02760945,2649.8,2649.1,0.94404]
[1645379980939,0.00253377,2650.3,2649.1,0.94404]
[1645379982583,1.08039458,2649.9,2649.1,0.94404]
[1645379983384,1.16145157,2649.5,2649.1,0.94404]
[1645379983588,1.16145157,2649.5,2648.6,4.44418]
[1645379983790,1.16145157,2649.5,2648.4,3.5]
[1645379983984,12.67145157,2649.5,2648.4,3.5]
[1645379984188,12.86015157,2649.5,2648.4,3.5]
[1645379984784,1.35015157,2649.5,2648.4,3.5]
[1645379985183,1.35015157,2649.5,2648.3,1.8885829]
[1645379985840,1.16145157,2649.5,2648.3,1.8885829]
[1645379986241,8.54145157,2649.5,2648.3,1.8885829]
[1645379986441,1.16145157,2649.5,2648.3,1.8885829]
[1645379986643,1.16145157,2649.5,2648.3,1.94371103]
[1645379990585,0.00242282,2649.4,2648.3,1.94371103]
[1645379991188,0.00242282,2649.4,2648.3,1.93941347]
[1645379992683,0.00242282,2649.4,2648.4,3.5]
[1645379992932,0.00242282,2649.4,2648.3,1.93941347]
[1645379993131,1.1857054,2649.1,2648.3,0.99940813]
[1645379993332,1.1857054,2649.1,2648.3,0.05512813]
[1645379993634,1.1857054,2649.1,2648.2,2.8328135]
[1645379996232,0.00242054,2649.3,2648.2,2.8328135]
[1645379996433,1.10955527,2649.3,2648.2,2.8328135]
[1645379998293,1.10752845,2649.2,2648.2,2.8328135]
[1645379998491,0.00242054,2649.3,2648.2,2.8328135]
[1645379998692,1.11105381,2649.3,2648.2,2.8328135]
[1645379999695,1.11105381,2649.3,2648.3,0.46942741]
[1645380000541,1.11105381,2649.3,2648.2,2.8328135]
[1645380000736,1.11105381,2649.3,2648.3,0.46943825]
[1645380001139,1.1125207,2649.0,2648.2,2.8328135]
[1645380001743,1.1125207,2649.0,2648.3,0.46985682]
[1645380001940,1.1125207,2649.0,2648.2,2.8328135]
[1645380001941,1.10946753,2648.9,2648.2,2.8328135]
[1645380002540,3.20982054,2649.3,2648.2,2.8328135]
[1645380002746,1.10962184,2649.2,2648.2,2.8328135]
[1645380003142,1.10962184,2649.2,2648.3,0.46984982]
[1645380004184,1.10962184,2649.2,2648.8,0.13549956]
[1645380004388,0.05537228,2648.5,2648.2,2.8328135]
[1645380004788,0.05537228,2648.5,2648.2,1.8884835]
[1645380004989,0.05537228,2648.5,2648.0,0.00236447]
[1645380005186,0.05537228,2648.5,2648.0,0.47538243]
[1645380005392,0.05537228,2648.5,2648.0,0.00236447]
[1645380005587,0.05537228,2648.5,2648.1,0.47301796]
[1645380005784,0.05537228,2648.5,2648.0,0.00236423]
[1645380005989,1.14552257,2648.5,2648.0,0.00236423]
[1645380006291,12.61792718,2648.4,2648.0,0.00236423]
[1645380006488,1.10792718,2648.3,2648.0,0.00236423]
[1645380006887,1.10792718,2648.3,2647.3,1.2041]
[1645380007086,1.05469416,2648.1,2647.4,0.47264875]
[1645380007286,1.05469416,2648.1,2648.0,0.00236418]
[1645380007941,3.0676,2648.2,2648.0,0.00236418]
[1645380008145,3.0676,2648.2,2646.9,10.35099063]
[1645380008343,3.0676,2648.2,2647.9,0.0023642]
[1645380008944,1.2015,2648.3,2647.9,0.0023642]
[1645380009247,1.10679046,2648.2,2648.1,0.49657566]
[1645380009446,12.80549046,2648.2,2648.1,0.49657566]
[1645380009852,12.61679046,2648.2,2648.1,0.49657566]
[1645380010246,13.60432011,2648.2,2648.1,0.49657566]
[1645380010648,12.61679046,2648.2,2648.1,7.566e-05]
[1645380010845,12.61679046,2648.2,2647.2,0.47208908]
[1645380011045,12.61679046,2648.2,2646.9,2.12889613]
[1645380011046,12.61679046,2648.1,2646.9,2.12889613]
[1645380011248,3.5,2648.0,2646.9,2.12889613]
[1645380011687,0.96523198,2647.7,2646.9,2.12889613]
[1645380011886,0.96523198,2647.7,2646.9,0.94749613]
[1645380012489,3.5,2647.6,2646.9,0.00266613]
[1645380013087,0.96523198,2647.7,2647.1,0.00236204]
[1645380013486,0.9553786,2647.7,2647.1,0.00236204]
[1645380013889,3.5,2647.6,2647.1,0.00236204]
[1645380014087,3.5,2647.6,2646.9,0.00266613]
[1645380014287,3.5,2647.6,2647.3,0.00236198]
[1645380014489,0.9553786,2647.7,2647.3,0.00236198]
[1645380014687,3.5,2647.6,2647.3,0.00236198]
[1645380015349,3.5,2647.6,2646.9,0.00944935]
[1645380015350,1.00237893,2647.1,2646.7,0.00266613]
[1645380015545,3.5,2647.0,2646.9,0.00944927]